Cogmind - Beta 10.1 @@@ ROGUE MODE // 2020.09.28 @ 18:15:26 // AFD2020/Player2 Player: Minty Result: Core destroyed Performance ------------- Evolutions (0) 0 Regions Visited (4) 800 Robots Destroyed (16) 80 Value Destroyed (292) 292 Prototype IDs (24) 480 Alien Tech Used (0) 0 Bonus (301) 301 TOTAL SCORE: 1953 Bonus ------- Follower Combat Kills 205 Aligned with FarCom 300 Friendly Fire -204 Cogmind --------- Core Integrity 0/250 Matter 300/300 Energy 236/280 System Corruption 0% Temperature Cool (110) Movement Walking (390) Ox9 Location -9/Mines Parts ------- > --- POWER (1) -------- Heavy Ion Engine > --- PROPULSION (2) --- Aluminum Leg > --- UTILITY (2) ------ Humpback > --- WEAPON (2) ------- Light EM Pulse Cannon > --- INVENTORY (24) --- Flight Unit Flight Unit Flight Unit Flight Unit Army-in-a-Box (30/30) Peak State ------------ > --- POWER ------------ Heavy Ion Engine > --- PROPULSION ------- Hover Unit Hover Unit > --- UTILITY ---------- Humpback > --- WEAPON ----------- Light EM Pulse Cannon > --- INVENTORY -------- Flight Unit Flight Unit Flight Unit Flight Unit Army-in-a-Box [Rating: 14] Favorites ----------- Power Heavy Ion Engine Engine Heavy Ion Engine Propulsion Hover Unit Leg Aluminum Leg Wheel Wheel Hover Unit Hover Unit Utility Humpback Device Disposable Heat Sink Storage Humpback Processor Signal Interpreter Protection Light Armor Plating Weapon Light EM Pulse Cannon Energy Gun EM Pulse Gun Energy Cannon Light EM Pulse Cannon Build | -11 -10 -10 -10 -9 ------- Run | Scr Mat Min Exi Min Slots Evolved . | . . . . . Power . | . . . . . Propulsion . | . . . . . Utility . | . . . . . Weapon . | . . . . . Parts Attached 20 | 5 13 . 1 1 Power 3 | 1 2 . . . Engine 3 | 1 2 . . . Core . | . . . . . Reactor . | . . . . . Propulsion 8 | 2 5 . . 1 Treads . | . . . . . Leg 1 | . . . . 1 Wheel 3 | 2 1 . . . Hover 4 | . 4 . . . Flight . | . . . . . Utility 5 | . 4 . 1 . Device 2 | . 2 . . . Storage 1 | . . . 1 . Processor 1 | . 1 . . . Hackware . | . . . . . Protection 1 | . 1 . . . Artifact . | . . . . . Weapon 4 | 2 2 . . . Energy Gun 3 | 2 1 . . . Energy Cannon 1 | . 1 . . . Ballistic Gun . | . . . . . Ballistic Cannon . | . . . . . Launcher . | . . . . . Special Weapon . | . . . . . Impact Weapon . | . . . . . Slashing Weapon . | . . . . . Piercing Weapon . | . . . . . Special Melee Weapon . | . . . . . Unidentified Prototypes 1 | . 1 . . . Parts Lost 4 | . 4 . . . Power . | . . . . . Propulsion 2 | . 2 . . . Utility . | . . . . . Weapon 2 | . 2 . . . Highest Loss Streak 4 | . 4 . . . Average Slot Usage (%) 72 | . 70 85 73 67 Engine 13 | . 12 14 14 14 Wheel 1 | . 5 . . . Hover 25 | . 21 28 28 21 Storage 8 | . . . 11 14 Processor 3 | . 7 14 2 . Protection 2 | . 2 14 2 . Energy Gun 2 | . 14 . . . Energy Cannon 11 | . 3 14 14 14 Naked Turns . | . . . . . Heaviest Build 92 | 9 15 15 92 92 Greatest Support 26 | 26 26 12 12 12 Greatest Overweight (x) 9 | 1 2 1 7 9 Average Overweight (x) 2 | . . 1 4 7 Largest Inventory Capacity 24 | 4 4 4 24 24 Average Capacity 16 | 4 4 4 20 24 Most Carried 10 | . 4 4 10 10 Average Carried 6 | . 2 4 7 10 Final Capacity 24 | 4 4 4 24 24 Final Carried 10 | . 4 4 10 10 Class Distribution -------------------- 63% | Hauler-Mutant 36% | Mutant Dominant Class ---------------- Mutant | -10/Materials Mutant | -10/Mines Hauler-Mutant | -10/Exiles Hauler-Mutant | -9/Mines Resources | -11 -10 -10 -10 -9 ----------- Run | Scr Mat Min Exi Min Matter Collected 380 | 119 241 . . 20 Remotely . | . . . . . Salvage Created 398 | . 260 . . 138 Parts 31 | . 26 . . 5 Haulers Intercepted . | . . . . . Recyclers Shooed . | . . . . . Parts Field Recycled . | . . . . . Retrieved Matter . | . . . . . Parts Self-Destructed . | . . . . . Prevented . | . . . . . Kills | -11 -10 -10 -10 -9 ------- Run | Scr Mat Min Exi Min Combat Hostiles Destroyed 11 | . 6 . . 5 Guns 1 | . 1 . . . Cannons 4 | . 1 . . 3 AOE 5 | . 3 . . 2 Classes Destroyed 7 | . 6 . . 1 Builder 2 | . 2 . . . Tunneler 1 | . 1 . . . Operator 1 | . 1 . . . Watcher 1 | . 1 . . . Swarmer 3 | . 3 . . . Grunt 5 | . 3 . . 2 Assembled 3 | . . . . 3 Best Kill Streak 4 | . 4 . . 3 Combat Bots Only 3 | . 3 . . 3 Max Kills in Single Turn 2 | . 2 . . 2 Gunslinging . | . . . . . Exploded 2 | . 1 . . 2 Melee . | . . . . . Uniques/NPCs Destroyed . | . . . . . Combat | -11 -10 -10 -10 -9 -------- Run | Scr Mat Min Exi Min Damage Taken 700 | . 536 . . 164 Core 178 | . 154 . . 24 Absorbed by Shields . | . . . . . Core Remaining (%) 100 | 100 . . . . Volleys Fired 44 | . 35 . . 9 Largest 2 | . 2 . . 1 Hottest 80 | . 80 . . 56 Shots Fired 60 | . 51 . . 9 Gun 40 | . 40 . . . Cannon 20 | . 11 . . 9 Launcher . | . . . . . Special . | . . . . . Kinetic . | . . . . . Thermal 8 | . 8 . . . Explosive . | . . . . . Electromagnetic 52 | . 43 . . 9 Robot Hit Streak 9 | . 7 . . 9 Robot Miss Streak 4 | . 4 . . 1 Penetration Max . | . . . . . Secondary Targets . | . . . . . Shots Hit Robots 34 | . 26 . . 8 Core Hits 23 | . 17 . . 6 Critical Hits . | . . . . . Critical Kills . | . . . . . Critical Parts Destroyed . | . . . . . Melee Attacks . | . . . . . Impact . | . . . . . Slashing . | . . . . . Piercing . | . . . . . Sneak Attacks . | . . . . . Combat Hostiles . | . . . . . Follow-up Attacks . | . . . . . Damage Inflicted 1055 | . 743 . . 312 Guns 334 | . 334 . . . Cannons 277 | . 116 . . 161 Explosions 444 | . 293 . . 151 Melee . | . . . . . Ramming . | . . . . . Kinetic . | . . . . . Thermal 399 | . 248 . . 151 Explosive 81 | . 81 . . . Electromagnetic 575 | . 414 . . 161 Impact . | . . . . . Slashing . | . . . . . Piercing . | . . . . . Highest Corruption . | . . . . . Average Corruption . | . . . . . Corruption Purged . | . . . . . Overload Shots . | . . . . . Overflow Damage 41 | . 29 . . 12 Projectiles 22 | . 10 . . 12 Explosions 19 | . 19 . . . Melee . | . . . . . Knockbacks . | . . . . . Impact . | . . . . . Kinetic . | . . . . . Secondary . | . . . . . Self-Inflicted Damage 74 | . 74 . . . Shots 2 | . 2 . . . Rammed . | . . . . . Targets Rammed . | . . . . . Kicked . | . . . . . Crushed . | . . . . . Highest Temperature 271 | . 271 . . 166 Average Temperature 86 | . 88 . . 73 Received Heat Transfer 280 | . 213 . . 67 Siege Activations . | . . . . . Robots Corrupted 1 | . 1 . . . Combat Hostiles 1 | . 1 . . . Parts Fried 3 | . 3 . . . Impact Corruptions . | . . . . . Robots Melted . | . . . . . Combat Hostiles . | . . . . . Parts Melted 1 | . 1 . . . Heat Transferred 468 | . 356 . . 112 Parts Sabotaged . | . . . . . Parts Stolen . | . . . . . Parts Stripped . | . . . . . Power Chain Reactions 4 | . 3 . . 1 Missiles Intercepted . | . . . . . Alert | -11 -10 -10 -10 -9 ------- Run | Scr Mat Min Exi Min Peak Influence 367 | . 367 130 . 87 Initial 130 | . . 130 . . Average 142 | . 245 130 . 25 Maximum Alert Level 1 | . 1 . . . Low Security (%) 70 | 100 34 100 . 100 Level 1 29 | . 65 . . . Level 2 . | . . . . . Level 3 . | . . . . . Level 4 . | . . . . . Level 5 . | . . . . . High Security . | . . . . . Max Security . | . . . . . Squads Dispatched 1 | . 1 . . . Investigation 1 | . 1 . . . Extermination . | . . . . . Reinforcement . | . . . . . Assault . | . . . . . Garrison . | . . . . . Intercept . | . . . . . Construction Impeded . | . . . . . Haulers Reinforced . | . . . . . Stealth | -11 -10 -10 -10 -9 --------- Run | Scr Mat Min Exi Min Distress Signals 1 | . 1 . . . Communications Jammed . | . . . . . Distress Signals . | . . . . . Times Spotted 30 | . 16 . . 14 Peak Tracking Total 16 | . 6 . . 16 Tactical Retreats 2 | . 2 . . . Traps | -11 -10 -10 -10 -9 ------- Run | Scr Mat Min Exi Min Traps Triggered . | . . . . . Indirectly . | . . . . . Trap Hack Attempts . | . . . . . Triggered . | . . . . . Disarmed . | . . . . . Reprogrammed . | . . . . . Reused . | . . . . . Traps Extracted . | . . . . . Installed . | . . . . . Triggered . | . . . . . Machines | -11 -10 -10 -10 -9 ---------- Run | Scr Mat Min Exi Min Machines Disabled 3 | . 3 . . . Max in Single Turn 2 | . 2 . . . Machines Sabotaged . | . . . . . Garrisons Compromised . | . . . . . Overloaded Fab Kills . | . . . . . Fab Network Shutdowns . | . . . . . Hacking | -11 -10 -10 -10 -9 --------- Run | Scr Mat Min Exi Min Machines Accessed 3 | . 2 . 1 . Terminals 1 | . 1 . . . Fabricators . | . . . . . Repair Stations 1 | . 1 . . . Recycling Units . | . . . . . Scanalyzers . | . . . . . Garrison Access . | . . . . . Total Hacks 5 | . 4 . 1 . Successful 5 | . 4 . 1 . Failed . | . . . . . Catastrophic . | . . . . . Database Lockouts . | . . . . . Manual 2 | . 1 . 1 . Terminals 1 | . 1 . . . Fabricators . | . . . . . Repair Stations 3 | . 3 . . . Recycling Units . | . . . . . Scanalyzers . | . . . . . Garrison Access . | . . . . . Terminal Hacks 2 | . 1 . 1 . Branch Access Points 1 | . 1 . . . EX-Prototype ID Bank 1 | . . . 1 . Fabricator Hacks . | . . . . . Repair Station Hacks 3 | . 3 . . . Scan Component 1 | . 1 . . . Repair 1 | . 1 . . . Refit 1 | . 1 . . . Recycling Unit Hacks . | . . . . . Scanalyzer . | . . . . . Garrison Access Hacks . | . . . . . Unauthorized Hacks . | . . . . . Terminals . | . . . . . Fabricators . | . . . . . Repair Stations . | . . . . . Recycling Units . | . . . . . Scanalyzers . | . . . . . Garrison Access . | . . . . . Data Cores Recovered 1 | . 1 . . . Used . | . . . . . Hacking Detections . | . . . . . Full Trace Events . | . . . . . Feedback Events . | . . . . . Feedback Blocked . | . . . . . Robot Schematics Acquired . | . . . . . Robots Built . | . . . . . Matter . | . . . . . Time . | . . . . . Total Robot Build Rating . | . . . . . Part Schematics Acquired . | . . . . . Parts Built . | . . . . . Matter . | . . . . . Time . | . . . . . Total Part Build Rating . | . . . . . Parts Repaired 1 | . 1 . . . Time 51 | . 51 . . . Parts Recycled . | . . . . . Recycled Matter . | . . . . . Retrieved Matter . | . . . . . Retrieved Components . | . . . . . Parts Scanalyzed . | . . . . . Part Schematics Acquired . | . . . . . Parts Damaged . | . . . . . Bothacking | -11 -10 -10 -10 -9 ------------ Run | Scr Mat Min Exi Min Used RIF Installer . | . . . . . Robots Hacked . | . . . . . Non-combat . | . . . . . Combat . | . . . . . Robot Hacks Applied . | . . . . . Relay Couplers Released . | . . . . . Robots Rewired . | . . . . . Allies Hacked . | . . . . . Hacks Repelled . | . . . . . Allies | -11 -10 -10 -10 -9 -------- Run | Scr Mat Min Exi Min Total Allies 1 | . 1 . . . Largest Group 1 | . 1 1 1 1 Highest-Rated Group 63 | . 63 62 63 63 Highest-Rated Ally 63 | . 63 62 63 63 Total Orders . | . . . . . Ally Attacks 18 | . 12 . . 6 Total Damage 827 | . 714 . . 113 Kills 12 | . 11 . . 1 Allies Corrupted . | . . . . . Allies Melted . | . . . . . Intel | -11 -10 -10 -10 -9 ------- Run | Scr Mat Min Exi Min Robot Analysis Total . | . . . . . Derelict Logs Recovered . | . . . . . Drone Launches . | . . . . . Drone Recoveries . | . . . . . Exploration | -11 -10 -10 -10 -9 ------------- Run | Scr Mat Min Exi Min Turns Passed 2638 | 35 518 187 1501 397 Spaces Moved 1156 | 33 425 154 465 79 Core 12 | 10 2 . . . Treads . | . . . . . Legs 20 | . . . . 20 Wheels 140 | 23 117 . . . Hover 984 | . 306 154 465 59 Flight . | . . . . . Fastest Speed 50 | 50 56 116 116 390 Average Speed 206 | 85 76 116 322 454 Slowest Speed 476 | 100 180 116 476 476 Overloaded Moves . | . . . . . Propulsion Burnouts . | . . . . . Robots Hopped . | . . . . . Cave-ins Triggered . | . . . . . Exploration Rate (%) 40 | 4 61 35 77 24 Regions Visited 4 Branch Regions 3 Pre-discovered Areas . | . . . . . Known Exits Taken 2 | . 1 1 . . Unknown Exits Taken 2 | 1 . . 1 . Scrap Searched . | . . . . . Spaces Dug . | . . . . . Terrain Destroyed 39 | . 37 . . 2 Melee . | . . . . . Projectile . | . . . . . AOE 39 | . 37 . . 2 Terrain Rammed . | . . . . . Walls Destroyed . | . . . . . Machines Disabled . | . . . . . Actions | -11 -10 -10 -10 -9 --------- Run | Scr Mat Min Exi Min Total 1341 | 37 563 162 470 109 Wait 106 | . 79 9 . 18 Move 1152 | 32 424 153 464 79 Hop . | . . . . . Pick Up 6 | . 4 . 2 . Fast Attach 20 | 5 13 . 1 1 Attach . | . . . . . Detach . | . . . . . Swap . | . . . . . Drop 13 | . 8 . 3 2 Fire 44 | . 35 . . 9 Melee . | . . . . . Ram . | . . . . . Kick . | . . . . . Crush . | . . . . . Escape Stasis . | . . . . . Rewire . | . . . . . Trap . | . . . . . Miscellaneous . | . . . . . Route ------- -11/Scrapyard -10/Materials (discovered 3 exits: [*Mat x2] / *Min) -10/Mines -10/Exiles -9/Mines History --------- Turn | Location | Event 5 | -11/Scrapyard | Discovered new exit (range 16) 36 | -11/Scrapyard | Entered Materials 178 | -10/Materials | Core integrity fell below 50% 205 | -10/Materials | Lost 4 parts (2n2w) 314 | -10/Materials | Build established: Mutant 354 | -10/Materials | Repaired Hvy. Ion Engine 364 | -10/Materials | Discovered new exit (range 15) 376 | -10/Materials | Identified exit to Mines 426 | -10/Materials | Discovered new exit (range 9) 554 | -10/Materials | Entered Mines 554 | -10/Mines | Accompanied by 1 ally 730 | -10/Mines | Deemed a non-threat by the Exiles lab entrance 730 | -10/Mines | Discovered new exit (range 5) 734 | -10/Mines | Identified exit to Exiles 741 | -10/Mines | Entered Exiles 741 | -10/Exiles | Accompanied by 1 ally 769 | -10/Exiles | Met 8R-AWN 789 | -10/Exiles | Met EX-HEX 820 | -10/Exiles | Met EX-BIN 834 | -10/Exiles | Aligned with FarCom system 835 | -10/Exiles | Given EX-Vault access code 862 | -10/Exiles | Opened EX-Vault 900 | -10/Exiles | Warned to stay clear of 0b10 Research branches 930 | -10/Exiles | Met EX-DEC 1280 | -10/Exiles | Build established: Hauler-Mutant 1351 | -10/Exiles | Found Army-in-a-Box 1715 | -10/Exiles | Visited The Gauntlet 2204 | -10/Exiles | Discovered new exit (range 10) 2242 | -10/Exiles | Left Exiles lab with Army-in-a-Box 2242 | -10/Exiles | Entered Mines 2242 | -9/Mines | Accompanied by 1 ally 2615 | -9/Mines | Assembled infested the area 2626 | -9/Mines | Core integrity fell below 20% 2639 | -9/Mines | Core destroyed Last Messages --------------- 02615_ ALERT: Infestation in the mines, dispatching Demolisher response squad. Player 2: "Quick, hide!" 02622_ as-07596 destroyed. 02625_ as-09862 knocked back. 02626_ as-02087 destroyed. 02626_ Destroyed Asb. Hover Unit. 02628_ as-09862 destroyed. 02630_ as-65843 destroyed. 02630_ Knocked back. 02631_ as-03804 destroyed. 02631_ R-06 Scavenger destroyed. 02631_ Player 2 system corrupted by crushing effect. 02632_ as-41478 destroyed. 02632_ as-83164 destroyed. 02632_ as-36590 destroyed. 02634_ as-21010 destroyed. 02634_ Player 2 attaches Visual Processing Unit. 02635_ as-59157 destroyed. 02635_ Player 2 attaches Com. Wheel. Map ----- +----------------------------------------------------+ | ?????????????????????????????????????????????????? | | ?????????????????????????????????????????????????? | | ?????????????????????????????????????????????????? | | ?????????????????????????????????????????????????? | | ?????????????????????????????????????????????????? | | ?????????????????????????????????????????????????? | | ?????????????????????????????????????????????????? | | ?????????????????????????????????????????????????? | | ?????????????????????????????????????????????????? | | ?????????????????????????????????????????????????? | | ?????????????????????????????????????????????????? | | ?????????????????????????????????????????????????? | | ??????????????????????#?g????????????????????????? | | ?????????????# ?????# gg???????????????????????? | | ????????????? ???## ?????????????????????????? | | ???????????? #### ?????????????????????????? | | ???????????? # ?????????????????????????? | | ??????????? ?????????????????????????? | | ??????????? % ?????????????????????????? | | ??????????? ! ?????????????????????????? | | ?????????? ##???????????????????????? | | ?????????? ##??????????????????????? | | ???????????d ##?????????????????????? | | ?????????? # @ #?????????????????????? | | ?????????? d % #?????????????????????? | | ?????????? @##?????????????????????? | | ?????????? #??????????????????????? | | ?????????? % # #??????????????????????? | | ?????????????? ###### #??????????????????????? | | ???????????# #????????# #????????????#####?????? | | ???????????????????????# #?????????#### ##????? | | ???????????????????????# #???????### ##???? | | ???????????????????????# #??????## ##### | | ???????????????????????# u#???#### | | ???????????????????????# #??## | | ???????????????????????# ####[* ###? | | ???????????????????????# [% ### ###??? | | ???????????????????????########!== ##?## #????? | | ??????????????????????????????#"%! ##???# #####? | | ??????????????????????????????#" % #????# #? | | ???????????????????????????#### ##???###### #? | | ??????????????????????????## ##???????# #? | | ??????????????????????????# #???????# #? | | ??????????????????????????# #???????# #? | | ??????????????????????????## ### ##???????# #? | | ???????????????????????????####?######????????# #? | | ??????????????????????????????????????????????# #? | | ??????????????????????????????????????????????# #? | | ??????????????????????????????????????????????# ## | | ??????????????????????????????????????????????# | +----------------------------------------------------+ Best States ------------- Heat Dissipation 25 Coolant Potential 50 Energy Generation 14 Energy Capacity 280 Matter Stores 300 Matter Capacity 300 Sight Range 16 Terrain Scan Density 10 Armor Coverage 150 Evasion (%) 53 Item Schematics ----------------- None Robot Schematics ------------------ None Fabricated ------------ Nothing Alien Tech Used ----------------- None Achievements -------------- None Challenges ------------ None Player 2 | -11 -10 -10 -10 -9 ---------- Run | Scr Mat Min Exi Min Slots Evolved . | . . . . . Power . | . . . . . Propulsion . | . . . . . Utility . | . . . . . Weapon . | . . . . . Parts Attached 16 | . 14 . . 2 Parts Lost 4 | . . . . 4 Damage Taken 550 | . 150 . . 400 Core 72 | . 32 . . 40 Player 2/Cogmind (%) 28 | . 17 . . 62 Absorbed by Shields . | . . . . . Damage Inflicted 827 | . 714 . . 113 Player 2/Cogmind (%) 43 | . 49 . . 26 Combat Hostiles Destroyed 10 | . 9 . . 1 Player 2/Cogmind (%) 47 | . 60 . . 16 Game ------ Seed ChipCoolingDeconstructor Manual? 0 Play Time 00:09:25 Cumulative 302.5 hours Start 2020.09.28 @ 18:07:09 End 2020.09.28 @ 18:15:26 Sessions 1 Manual Loads 0 Difficulty Rogue Special Mode AFD2020/Player2 Game No. 163 Rogue 6 Adventurer 52 Explorer 105 Win Type - Total 19 Types 17/0/1/0/0/0/0/1/0 Lore% 61 Gallery% 85 Achievement% 63 Wizard Run 0 Options --------- ASCII 0 Keyboard 0 Movement Mouse Keybinds 0 Fullscreen 2 Font 18/Terminus Map View 76x50 Tactical HUD 1 Map Filters NONE Filters SATURATION(100) Steam 1 RUN: 87114fa5-c09c-4ea7-9318-fb0ee060aba2